bitfinex-derivatives/quotes_BTCF0:USTF0_20250514
["timestamp","ask_amount","ask_price","bid_price","bid_amount"]
[1747232539442,0.6727585,103260.0,103250.0,0.3001755]
[1747232539852,0.6727585,103260.0,103250.0,0.39703249]
[1747232540647,0.6617585,103260.0,103250.0,0.64132303]
[1747232540846,0.6617585,103260.0,103250.0,0.20335699]
[1747232541153,0.1936755,103250.0,103240.0,0.002]
[1747232541352,0.1936755,103250.0,103230.0,0.00193733]
[1747232541353,0.1936942,103240.0,103230.0,0.00193733]
[1747232541561,0.1937505,103210.0,103200.0,0.10506]
[1747232541747,0.1937505,103210.0,103200.0,0.65091924]
[1747232541946,0.6514145,103220.0,103210.0,0.29059811]
[1747232542142,0.8744145,103220.0,103210.0,0.1078]
[1747232542355,0.9293145,103220.0,103210.0,0.20469453]
[1747232542558,0.6387,103220.0,103210.0,0.64273557]
[1747232542754,0.1937318,103220.0,103210.0,0.73960787]
[1747232542958,0.6115318,103220.0,103210.0,0.73960787]
[1747232543255,0.3608,103220.0,103210.0,0.73960787]
[1747232543452,0.3608,103220.0,103210.0,0.79500787]
[1747232543648,0.3608,103220.0,103210.0,0.8091805]
[1747232543857,0.3608,103220.0,103210.0,0.56488996]
[1747232544051,0.6029473,103230.0,103220.0,0.1937318]
[1747232544247,0.7383785,103230.0,103220.0,0.107]
[1747232544446,0.7932785,103230.0,103220.0,0.0555]
[1747232545554,0.1937318,103220.0,103210.0,1.501]
[1747232545746,0.7628318,103220.0,103210.0,1.501]
[1747232545953,0.7628318,103220.0,103210.0,0.001]
[1747232546262,0.1937505,103210.0,103200.0,0.20966]
[1747232546448,0.9128505,103210.0,103200.0,1.70966]
[1747232546648,0.9128505,103210.0,103200.0,1.80654514]
[1747232547048,0.9128505,103210.0,103200.0,2.00031444]
[1747232547358,0.6628505,103210.0,103200.0,2.00031444]
[1747232547556,0.3668,103220.0,103200.0,2.19615508]
[1747232547761,0.6089678,103220.0,103210.0,0.1094]
[1747232547948,1.0846678,103220.0,103210.0,0.1094]
[1747232548150,1.0846678,103220.0,103210.0,0.3031505]
[1747232548350,0.5575345,103220.0,103210.0,0.40003564]
[1747232548552,0.3638,103220.0,103210.0,0.40003564]
[1747232548957,0.3608,103220.0,103210.0,0.64432618]
[1747232549161,0.5545318,103220.0,103210.0,0.40003564]
[1747232549958,0.5575318,103220.0,103210.0,0.40103564]
[1747232550160,0.7275318,103220.0,103210.0,0.40103564]
[1747232550353,0.7817318,103220.0,103210.0,0.40103564]
[1747232550766,0.7847318,103220.0,103210.0,0.45257568]
[1747232550955,0.7847318,103220.0,103210.0,0.64632618]
[1747232551355,0.7305318,103220.0,103210.0,0.40203564]
[1747232551866,0.7305318,103220.0,103210.0,0.64632618]
[1747232552255,0.5368,103220.0,103210.0,0.64632618]
[1747232552456,0.006,103220.0,103210.0,0.70272618]
[1747232553157,0.006,103220.0,103210.0,1.06352618]
[1747232553468,0.006,103220.0,103210.0,0.70272618]
[1747232553971,0.006,103220.0,103210.0,1.16041018]
[1747232554561,0.006,103220.0,103210.0,2.66041018]
[1747232554766,0.3628,103240.0,103230.0,0.193713]
[1747232554958,0.3628,103240.0,103230.0,0.43800354]
[1747232555156,0.002,103240.0,103230.0,0.96370354]
[1747232555360,0.002,103240.0,103230.0,2.56056991]
[1747232555573,0.002,103240.0,103230.0,2.31627937]
[1747232555869,0.002,103240.0,103230.0,2.56056991]
[1747232556072,0.008,103240.0,103230.0,2.19976991]
[1747232556767,0.008,103240.0,103230.0,2.56056991]
[1747232557157,0.2671187,103270.0,103260.0,0.1936567]
[1747232557361,0.1936567,103260.0,103250.0,0.53478824]
[1747232557669,0.5544567,103260.0,103250.0,0.54895474]
[1747232557865,0.6099567,103260.0,103250.0,0.20786637]
[1747232558055,0.9843567,103260.0,103250.0,0.20786637]
[1747232558260,0.9843567,103260.0,103250.0,0.055]
[1747232558456,1.0379567,103260.0,103250.0,0.055]
[1747232558660,0.8249567,103260.0,103250.0,0.15284761]
[1747232558859,0.8249567,103260.0,103250.0,0.20884761]
[1747232559063,0.8249567,103260.0,103250.0,0.15284761]
[1747232559262,0.8249567,103260.0,103250.0,0.09784761]
[1747232559466,0.8249567,103260.0,103250.0,0.001]
[1747232559968,1.07524724,103260.0,103250.0,0.002]
[1747232560175,1.28524724,103260.0,103250.0,0.002]
[1747232560468,1.0409567,103260.0,103250.0,0.002]
[1747232560672,1.28524724,103260.0,103250.0,0.002]
[1747232561568,1.0409567,103260.0,103250.0,0.002]
[1747232563158,1.75716724,103260.0,103250.0,0.002]
[1747232563367,1.69913505,103260.0,103250.0,0.002]
[1747232564273,2.2322414,103260.0,103250.0,0.002]
[1747232564470,2.04598305,103260.0,103250.0,0.002]
[1747232564675,1.5128767,103260.0,103250.0,0.002]
[1747232565368,1.0409567,103260.0,103250.0,0.43323385]
[1747232565568,0.4293,103260.0,103250.0,0.58468146]
[1747232565774,0.2066567,103260.0,103250.0,0.39842311]
[1747232566073,0.013,103260.0,103250.0,0.63828146]
[1747232566266,0.013,103260.0,103250.0,0.73512946]
[1747232566660,0.013,103260.0,103250.0,0.63828146]
[1747232567071,0.0734806,103270.0,103260.0,0.1936567]
[1747232567278,0.002,103280.0,103270.0,0.193638]
[1747232567476,0.002,103280.0,103270.0,1.38456181]
[1747232567668,0.1096,103300.0,103290.0,0.1936005]
[1747232568060,0.001,103300.0,103290.0,0.90302671]
[1747232568367,0.001,103300.0,103290.0,1.05543681]
[1747232569673,0.005,103300.0,103290.0,1.05643681]
[1747232570377,0.14564312,103310.0,103290.0,1.20964831]
[1747232570572,0.12287493,103320.0,103310.0,0.193563]
[1747232570766,0.31641923,103320.0,103310.0,0.54108921]
[1747232571167,0.12287493,103320.0,103310.0,2.13789931]
[1747232571381,0.48367493,103320.0,103310.0,2.13789931]
[1747232571571,0.31641923,103320.0,103310.0,2.13789931]
[1747232571763,0.68021923,103320.0,103310.0,1.7002101]
[1747232571965,0.68021923,103320.0,103310.0,1.8937731]
[1747232572167,0.37221923,103320.0,103310.0,2.13789931]
[1747232572377,0.37221923,103320.0,103310.0,1.8937731]
[1747232572576,0.73301923,103320.0,103310.0,2.13789931]
[1747232572774,0.12587493,103320.0,103310.0,2.49869931]
[1747232572968,0.12787493,103320.0,103310.0,2.49869931]
[1747232573872,0.12787493,103320.0,103310.0,2.2545731]
[1747232574084,0.12787493,103320.0,103310.0,2.49869931]
[1747232574373,0.12487493,103320.0,103310.0,2.51345548]
[1747232574773,0.004,103320.0,103310.0,2.51345548]
[1747232574973,0.002,103320.0,103310.0,2.51345548]
[1747232576882,0.414,103340.0,103330.0,0.1935255]
[1747232577183,0.6075068,103340.0,103330.0,0.1935255]
[1747232577383,0.6615068,103340.0,103330.0,0.3008255]
[1747232577584,0.6615068,103340.0,103330.0,0.39759813]
[1747232578490,0.6645068,103340.0,103330.0,0.39759813]
[1747232578882,0.6685068,103340.0,103330.0,0.39759813]
[1747232579577,0.475,103340.0,103330.0,0.64172434]
[1747232579778,0.6685068,103340.0,103330.0,0.64172434]
[1747232579983,0.008,103340.0,103330.0,0.64172434]
[1747232580182,0.008,103340.0,103330.0,1.00252434]
[1747232580686,0.008,103340.0,103330.0,2.50252434]
[1747232580873,0.008,103340.0,103330.0,2.25839813]
[1747232581078,0.5623068,103340.0,103330.0,1.89759813]
[1747232581381,0.2005068,103340.0,103330.0,1.70407263]
[1747232581587,0.5613068,103340.0,103330.0,1.89759813]
[1747232581785,0.5613068,103340.0,103330.0,2.14172434]
[1747232581786,0.3678,103340.0,103330.0,2.14172434]
[1747232581983,0.3658,103340.0,103330.0,2.14172434]
[1747232582285,0.3638,103340.0,103330.0,2.14172434]
[1747232582893,0.3618,103340.0,103330.0,2.14172434]
[1747232583375,0.001,103340.0,103330.0,2.14172434]
[1747232583793,0.001,103340.0,103330.0,2.50252434]
[1747232584487,0.4686,103360.0,103350.0,0.1934881]
[1747232584488,0.7169702,103360.0,103350.0,0.1934881]
[1747232584692,0.7969702,103360.0,103350.0,0.1934881]
[1747232584881,0.7969702,103360.0,103350.0,0.3006881]
[1747232585083,0.7969702,103360.0,103350.0,0.20397263]
[1747232585392,0.7969702,103360.0,103350.0,0.39746073]
[1747232585781,0.7999702,103360.0,103350.0,0.39746073]
[1747232586077,0.7999702,103360.0,103350.0,0.14817263]
[1747232586078,0.8039702,103360.0,103350.0,0.14817263]
[1747232586687,0.8039702,103360.0,103350.0,0.34166073]
[1747232586888,0.8039702,103360.0,103350.0,0.39656073]
[1747232587393,0.7239702,103360.0,103350.0,0.58236401]
[1747232588281,0.7239702,103360.0,103350.0,0.39656073]
[1747232588475,0.7239702,103360.0,103350.0,0.20307263]
[1747232588681,0.7239702,103360.0,103350.0,0.14817263]
[1747232588889,0.90977348,103360.0,103350.0,0.09677263]
[1747232589191,0.1934881,103350.0,103340.0,1.7478068]
[1747232589386,0.8004881,103350.0,103340.0,1.8025068]
[1747232589585,0.8004881,103350.0,103340.0,1.8992607]
[1747232589890,0.8004881,103350.0,103340.0,2.08506398]
[1747232590093,0.8004881,103350.0,103340.0,1.7057539]
[1747232590288,0.8004881,103350.0,103340.0,1.89155718]
[1747232590495,0.8024881,103350.0,103340.0,1.7057539]
[1747232590881,0.8024881,103350.0,103340.0,1.8992607]
[1747232591082,0.8024881,103350.0,103340.0,1.7057539]
[1747232591277,0.8024881,103350.0,103340.0,1.8992607]
[1747232591484,0.8044881,103350.0,103340.0,1.89155718]
[1747232591694,0.8044881,103350.0,103340.0,1.7057539]
[1747232591885,0.8044881,103350.0,103340.0,1.8992607]
[1747232592082,0.8044881,103350.0,103340.0,2.08506398]
[1747232592282,0.6644881,103350.0,103340.0,2.08506398]
[1747232592782,0.471,103350.0,103340.0,2.08506398]
[1747232593499,0.471,103350.0,103340.0,2.13556398]
[1747232593685,0.6644881,103350.0,103340.0,2.13556398]
[1747232593885,0.471,103350.0,103340.0,2.13556398]
[1747232594086,0.1102,103350.0,103340.0,2.13556398]
[1747232594385,0.471,103350.0,103340.0,2.13556398]
[1747232594587,0.1102,103350.0,103340.0,2.13556398]
[1747232594895,0.004,103350.0,103340.0,2.13556398]
[1747232595193,0.004,103350.0,103340.0,2.49636398]
[1747232595387,0.004,103350.0,103340.0,2.68216726]
[1747232595587,0.004,103350.0,103340.0,2.49636398]
[1747232595787,0.004,103350.0,103340.0,2.3105607]
[1747232595989,0.004,103350.0,103340.0,2.49636398]
[1747232596186,0.004,103350.0,103340.0,2.3105607]
[1747232596385,0.002,103350.0,103340.0,2.49636398]
[1747232597884,0.002,103350.0,103340.0,2.68216726]
[1747232598091,0.002,103350.0,103340.0,2.80216726]
[1747232598289,0.002,103360.0,103350.0,0.1934881]
[1747232598490,0.002,103360.0,103350.0,1.02999466]
[1747232598688,0.002,103360.0,103350.0,0.6583881]
[1747232598892,0.002,103360.0,103350.0,1.12675792]
[1747232599590,0.002,103360.0,103350.0,1.57315792]
[1747232599790,0.004,103360.0,103350.0,1.57315792]
[1747232600197,0.4701,103380.0,103370.0,0.1934506]
[1747232600390,0.6635319,103380.0,103370.0,0.37925388]
[1747232600590,0.6635319,103380.0,103370.0,1.98515388]
[1747232600786,0.6635319,103380.0,103370.0,2.08190778]
[1747232601001,0.6635319,103380.0,103370.0,1.83515718]
[1747232601297,0.7280319,103380.0,103370.0,1.83515718]
[1747232601596,0.7280319,103380.0,103370.0,1.6493539]
[1747232601895,0.7280319,103380.0,103370.0,1.5967539]
[1747232602391,0.7280319,103380.0,103370.0,0.28255718]
[1747232602591,0.7280319,103380.0,103370.0,0.1525539]
[1747232602796,0.7350319,103380.0,103370.0,0.33835718]
[1747232602996,0.7350319,103380.0,103370.0,0.1525539]
[1747232603192,0.9350319,103380.0,103370.0,0.3460045]
[1747232603392,0.9350319,103380.0,103370.0,0.1525539]
[1747232603587,0.9350319,103380.0,103370.0,0.3460045]
[1747232605497,0.9350319,103380.0,103370.0,0.1525539]
[1747232606092,0.9350319,103380.0,103370.0,0.3460045]
[1747232606293,0.7250319,103380.0,103370.0,0.53180778]
[1747232606494,0.7250319,103380.0,103370.0,0.58490778]
[1747232607104,0.7250319,103380.0,103370.0,0.3991045]
[1747232607398,0.7250319,103380.0,103370.0,0.58490778]
[1747232607796,0.7250319,103380.0,103370.0,0.53180778]
[1747232607996,0.7250319,103380.0,103370.0,0.1525539]
[1747232608201,0.7250319,103380.0,103370.0,0.3460045]
[1747232608404,0.8950319,103380.0,103370.0,0.3460045]
[1747232608596,0.8950319,103380.0,103370.0,0.1525539]
[1747232610595,0.8950319,103380.0,103370.0,0.3460045]
[1747232610793,0.8950319,103380.0,103370.0,0.58630778]
[1747232611199,0.6177319,103380.0,103370.0,0.58630778]
[1747232611400,0.5622319,103380.0,103370.0,0.58630778]
[1747232612000,0.6674319,103380.0,103370.0,0.58630778]
[1747232613002,0.6674319,103380.0,103370.0,0.4005045]
[1747232613408,0.6674319,103380.0,103370.0,0.58630778]
[1747232614109,0.3688,103380.0,103370.0,0.58630778]
[1747232614611,0.5622319,103380.0,103370.0,0.60052943]
[1747232614811,0.5622319,103380.0,103370.0,0.41472615]
[1747232615004,0.5622319,103380.0,103370.0,0.60052943]
[1747232615909,0.5622319,103380.0,103370.0,0.41472615]
[1747232616112,0.5622319,103380.0,103370.0,0.60052943]
[1747232617612,0.3688,103380.0,103370.0,0.60052943]
[1747232617912,0.5622319,103380.0,103370.0,0.60052943]
[1747232618409,0.5622319,103380.0,103370.0,0.41472615]
[1747232618615,0.5622319,103380.0,103370.0,0.60052943]
[1747232619109,0.008,103380.0,103370.0,2.10052943]
[1747232619413,0.5622319,103380.0,103370.0,1.91472615]
[1747232619704,0.5622319,103380.0,103370.0,2.10052943]
[1747232619912,0.3688,103380.0,103370.0,2.10052943]
[1747232620110,0.3688,103380.0,103370.0,1.91472615]
[1747232620304,0.3688,103380.0,103370.0,2.10052943]
[1747232620701,0.004,103380.0,103370.0,2.10052943]
[1747232620901,0.004,103380.0,103370.0,2.64713271]
[1747232621312,0.004,103380.0,103370.0,2.656689]
[1747232622003,0.003,103380.0,103370.0,2.657689]
[1747232622905,0.001,103380.0,103370.0,2.657689]
[1747232623099,0.001,103380.0,103370.0,2.47188572]
[1747232623613,0.001,103380.0,103370.0,2.660689]
[1747232623801,0.001,103380.0,103370.0,2.47488572]
[1747232624201,0.001,103380.0,103370.0,2.660689]
[1747232625509,0.7627106,103400.0,103390.0,0.1934132]
[1747232625811,0.7627106,103400.0,103390.0,0.37921648]
[1747232626001,0.7627106,103400.0,103390.0,0.48341648]
[1747232626198,0.14984131,103420.0,103410.0,0.1933758]
[1747232626407,0.57379841,103420.0,103410.0,0.40917908]
[1747232626704,0.80459841,103420.0,103410.0,0.51127908]
[1747232626904,0.80459841,103420.0,103410.0,0.60799555]
[1747232627204,0.80459841,103420.0,103410.0,0.32009227]
[1747232627401,0.85959841,103420.0,103410.0,0.32109227]
[1747232627602,0.86059841,103420.0,103410.0,0.50689555]
[1747232627914,0.86059841,103420.0,103410.0,0.55839555]
[1747232628113,0.7641571,103420.0,103410.0,0.55839555]
[1747232628301,0.7631571,103420.0,103410.0,0.61199555]
[1747232628503,0.7661571,103420.0,103410.0,0.61199555]
[1747232628805,0.7661571,103420.0,103410.0,0.42619227]
[1747232629122,1.0411571,103420.0,103410.0,0.37159227]
[1747232629302,1.0451571,103420.0,103410.0,0.37159227]
[1747232629506,1.0451571,103420.0,103410.0,0.03]
[1747232629704,1.23096038,103420.0,103410.0,0.03]
[1747232630009,1.23084052,103420.0,103410.0,0.03]
[1747232630202,1.23084052,103420.0,103410.0,0.2233758]
[1747232630402,1.23084052,103420.0,103410.0,0.03]
[1747232630807,1.57753652,103420.0,103410.0,0.03]
[1747232631017,0.1933945,103400.0,103390.0,1.94579693]
[1747232631309,0.6841945,103400.0,103390.0,0.5188947]
[1747232631514,1.2012945,103400.0,103390.0,0.5188947]
[1747232632209,1.2012945,103400.0,103390.0,0.4705421]
[1747232632418,1.61809778,103400.0,103390.0,0.1286321]
[1747232632716,1.61809778,103400.0,103390.0,0.22534753]
[1747232633013,1.4322945,103400.0,103390.0,0.22534753]
[1747232633408,1.61809778,103400.0,103390.0,0.03193433]
[1747232633716,1.4322945,103400.0,103390.0,0.22534753]
[1747232633908,1.4322945,103400.0,103390.0,0.03193433]
[1747232634104,1.4322945,103400.0,103390.0,0.22534753]
[1747232634408,1.61809778,103400.0,103390.0,0.22534753]
[1747232634813,1.4322945,103400.0,103390.0,0.22534753]
[1747232635502,1.61809778,103400.0,103390.0,0.03193433]
[1747232635702,1.61809778,103400.0,103390.0,0.00193433]
[1747232635912,2.01601778,103400.0,103390.0,0.00193433]
[1747232636211,2.17801778,103400.0,103390.0,0.00193433]
[1747232637402,1.78009778,103400.0,103390.0,0.19534753]
[1747232637607,2.17585778,103400.0,103390.0,0.19534753]
[1747232637809,1.91569778,103400.0,103390.0,0.22534753]
[1747232638009,1.81569778,103400.0,103390.0,0.22534753]
[1747232638209,1.67369778,103400.0,103390.0,0.22534753]
[1747232638915,1.27809778,103400.0,103390.0,0.22534753]
[1747232639716,1.0922945,103400.0,103390.0,0.22534753]
[1747232640218,1.27809778,103400.0,103390.0,0.22534753]
[1747232641215,1.0922945,103400.0,103390.0,0.322064]
[1747232641515,1.0922945,103400.0,103390.0,0.367364]
[1747232642309,1.27809778,103400.0,103390.0,0.1286508]
[1747232642508,1.60809778,103400.0,103390.0,0.03193433]
[1747232642914,1.60809778,103400.0,103390.0,0.22534753]
[1747232643516,1.25809778,103400.0,103390.0,0.22534753]
[1747232643818,1.28809778,103400.0,103390.0,0.22534753]
[1747232644019,1.28809778,103400.0,103390.0,0.03193433]
[1747232644223,1.47809778,103400.0,103390.0,0.03193433]
[1747232644719,1.47809778,103400.0,103390.0,0.22534753]
[1747232645109,1.27809778,103400.0,103390.0,0.367364]
[1747232645521,1.0922945,103400.0,103390.0,0.367364]
[1747232646113,1.27809778,103400.0,103390.0,0.367364]
[1747232646312,1.0722945,103400.0,103390.0,0.367364]
[1747232646621,1.0722945,103400.0,103390.0,0.413164]
[1747232646817,1.0722945,103400.0,103390.0,0.59896728]
[1747232647120,1.0208945,103400.0,103390.0,0.59896728]
[1747232647320,1.0208945,103400.0,103390.0,0.413164]
[1747232647620,0.7226,103400.0,103390.0,0.413164]
[1747232647814,0.3618,103400.0,103390.0,0.413164]
[1747232648025,0.5551945,103400.0,103390.0,0.59896728]
[1747232648417,0.3618,103400.0,103390.0,0.59896728]
[1747232648714,0.5551945,103400.0,103390.0,0.59896728]
[1747232649816,0.7251945,103400.0,103390.0,0.413164]
[1747232650019,1.17429778,103400.0,103390.0,0.413164]
[1747232650231,1.22069778,103400.0,103390.0,0.413164]
[1747232650917,1.0348945,103400.0,103390.0,0.413164]
[1747232651318,0.1934319,103380.0,103370.0,0.01422165]
[1747232651523,1.50156856,103380.0,103350.0,0.29722008]
[1747232651714,1.10087268,103360.0,103350.0,0.63435623]
[1747232652014,1.2750694,103360.0,103350.0,0.6848727]
[1747232652217,1.0907694,103360.0,103350.0,0.6316627]
[1747232652618,1.0107694,103360.0,103350.0,0.6346627]
[1747232653320,1.19857268,103360.0,103350.0,0.3898184]
[1747232653532,1.55837488,103360.0,103350.0,0.2952184]
[1747232653721,1.56037488,103360.0,103350.0,0.19850193]
[1747232654324,1.56037488,103360.0,103350.0,0.39199003]
[1747232654821,0.1934881,103350.0,103340.0,0.24570856]
[1747232655021,1.17329138,103350.0,103340.0,0.24570856]
[1747232655228,1.22289138,103350.0,103340.0,0.24570856]
[1747232655922,1.0370881,103350.0,103340.0,0.43921536]
[1747232656121,1.04289138,103350.0,103340.0,0.34247182]
[1747232656327,1.42869466,103350.0,103340.0,0.24570856]
[1747232656715,0.2903141,103330.0,103320.0,0.1935411]
[1747232656919,1.4386849,103330.0,103320.0,0.2383411]
[1747232657129,1.3902995,103330.0,103320.0,0.33510436]
[1747232657328,1.0702995,103330.0,103320.0,0.33510436]
[1747232657833,1.1142995,103330.0,103320.0,0.33510436]
[1747232658021,1.0702995,103330.0,103320.0,0.33510436]
[1747232658221,1.0119141,103330.0,103320.0,0.52090764]
[1747232658823,1.0119141,103330.0,103320.0,0.33510436]
[1747232659330,1.0119141,103330.0,103320.0,0.52090764]
[1747232659734,0.9635287,103330.0,103320.0,0.52090764]
[1747232660217,0.7216,103330.0,103320.0,0.70671092]
[1747232660423,0.7216,103330.0,103320.0,0.61768764]
[1747232660630,0.9151255,103330.0,103320.0,0.52090764]
[1747232661045,0.1935443,103320.0,103310.0,0.30774919]
[1747232661239,0.5743443,103320.0,103310.0,0.38907073]
[1747232661535,0.80544758,103320.0,103310.0,0.43746252]
[1747232661825,0.80544758,103320.0,103310.0,0.6232658]
[1747232661826,0.6691443,103320.0,103310.0,0.6232658]
[1747232662024,0.6691443,103320.0,103310.0,2.1232658]
[1747232662231,0.6731443,103320.0,103310.0,2.1232658]
[1747232662823,0.6711443,103320.0,103310.0,1.93746252]
[1747232663028,0.6731443,103320.0,103310.0,1.93746252]
[1747232663227,0.6761443,103320.0,103310.0,1.93746252]
[1747232663428,0.5813443,103320.0,103310.0,2.1232658]
[1747232663628,0.5613443,103320.0,103310.0,2.1232658]
[1747232664135,0.5613443,103320.0,103310.0,1.93746252]
[1747232664832,0.5613443,103320.0,103310.0,0.34066252]
[1747232665128,1.22044758,103320.0,103310.0,0.00193583]
[1747232665320,1.26814758,103320.0,103310.0,0.00193583]
[1747232666233,1.26814758,103320.0,103310.0,0.19549883]
[1747232666234,1.0823443,103320.0,103310.0,0.19549883]
[1747232666434,1.0823443,103320.0,103310.0,0.24289883]
[1747232666636,1.0823443,103320.0,103310.0,0.04933583]
[1747232667638,1.0823443,103320.0,103310.0,0.24289883]
[1747232667939,0.193563,103310.0,103300.0,0.1]
[1747232668133,1.48934628,103310.0,103300.0,0.1]
[1747232668438,1.58614628,103310.0,103300.0,0.04435745]
[1747232668632,1.83614628,103310.0,103300.0,0.04435745]
[1747232669238,1.63306628,103310.0,103300.0,0.04435745]
[1747232669537,1.468183,103310.0,103300.0,0.23793915]
[1747232669723,1.102463,103310.0,103300.0,0.28683915]
[1747232670238,0.940463,103310.0,103300.0,0.43093988]
[1747232671138,0.940463,103310.0,103300.0,0.23735818]
[1747232671331,0.93270328,103310.0,103290.0,0.0009681]
[1747232671538,0.6982817,103300.0,103290.0,0.0009681]
[1747232671837,1.21408498,103300.0,103290.0,0.0009681]
[1747232672341,1.22375499,103300.0,103290.0,0.0009681]
[1747232672535,1.22375499,103300.0,103290.0,0.0019681]
[1747232673242,1.32756699,103300.0,103290.0,0.0019681]
[1747232673434,2.14417027,103300.0,103290.0,1e-07]
[1747232673830,0.1936192,103280.0,103270.0,0.00193658]
[1747232674030,1.47330248,103280.0,103270.0,0.00193658]
[1747232674238,1.61490248,103280.0,103270.0,0.00193658]
[1747232675037,1.61890248,103280.0,103270.0,0.00193658]
[1747232675237,1.63353947,103280.0,103270.0,0.00193658]
[1747232675443,1.63753947,103280.0,103270.0,0.00193658]
[1747232676939,1.73436747,103280.0,103270.0,8e-08]
[1747232677341,2.09396747,103280.0,103270.0,8e-08]
[1747232678046,2.34396747,103280.0,103270.0,8e-08]
[1747232678233,2.50596747,103280.0,103270.0,8e-08]
[1747232678434,2.25596747,103280.0,103270.0,8e-08]
[1747232679242,2.09396747,103280.0,103270.0,8e-08]
[1747232679835,1.99713947,103280.0,103270.0,8e-08]
[1747232681141,0.1936567,103260.0,103250.0,0.00096848]
[1747232681348,1.29606326,103260.0,103250.0,0.00096848]
[1747232681542,1.0619567,103260.0,103250.0,0.00096848]
[1747232681749,1.24775998,103260.0,103250.0,0.00096848]
[1747232682147,1.24775998,103260.0,103250.0,0.04716848]
[1747232682344,1.0619567,103260.0,103250.0,0.24084398]
[1747232682544,0.6929567,103260.0,103250.0,0.28774398]
[1747232682744,0.8629567,103260.0,103250.0,0.28774398]
[1747232683249,1.04875998,103260.0,103250.0,0.28774398]
[1747232683638,1.40459998,103260.0,103250.0,0.28774398]
[1747232684039,1.40859998,103260.0,103250.0,0.28774398]
[1747232685250,1.40759998,103260.0,103250.0,0.28774398]
[1747232685450,1.41159998,103260.0,103250.0,0.28774398]
[1747232685948,0.8252567,103260.0,103250.0,0.28774398]
[1747232686140,0.7324567,103260.0,103250.0,0.38459159]
[1747232686342,0.7324567,103260.0,103250.0,0.43159159]
[1747232686940,0.84435998,103260.0,103250.0,0.14106848]
[1747232687142,0.84435998,103260.0,103250.0,0.09406848]
[1747232687437,1.42926326,103260.0,103250.0,8e-08]
[1747232688054,0.1936942,103240.0,103230.0,0.00193733]
[1747232688240,1.47109748,103240.0,103230.0,0.00193733]
[1747232688440,1.60789748,103240.0,103230.0,0.00193733]
[1747232690151,1.60889748,103240.0,103230.0,0.00193733]
[1747232690649,1.60889748,103240.0,103230.0,0.04933733]
[1747232691062,1.61089748,103240.0,103230.0,0.04933733]
[1747232691256,1.61089748,103240.0,103230.0,3e-08]
[1747232691548,0.1937505,103210.0,103200.0,0.15246]
[1747232691747,1.53971378,103210.0,103200.0,0.15246]
[1747232692049,1.63421378,103210.0,103200.0,0.15246]
[1747232692354,1.63421378,103210.0,103200.0,0.19936]
[1747232692544,1.4484105,103210.0,103200.0,0.3931293]
[1747232692746,1.4484105,103210.0,103200.0,0.3961293]
[1747232692747,1.63421378,103210.0,103200.0,0.3961293]
[1747232692948,1.63421378,103210.0,103200.0,0.20236]
[1747232693147,1.63421378,103210.0,103200.0,0.20536]
[1747232694153,1.63421378,103210.0,103200.0,0.3991293]
[1747232694343,1.4484105,103210.0,103200.0,0.3991293]
[1747232694543,1.3539105,103210.0,103200.0,0.3991293]
[1747232695054,1.3508305,103210.0,103200.0,0.3991293]
[1747232695352,1.3508305,103210.0,103200.0,0.4446293]
[1747232695548,1.3946305,103210.0,103200.0,0.25086]
[1747232695755,1.3946305,103210.0,103200.0,0.4446293]
[1747232697150,1.3946305,103210.0,103200.0,0.11106]
[1747232697356,1.83363378,103210.0,103200.0,0.11106]
[1747232697556,1.65363378,103210.0,103200.0,0.15636]
[1747232698354,1.88363378,103210.0,103200.0,0.15636]
[1747232701259,1.88363378,103210.0,103200.0,0.20256]
[1747232701850,1.88363378,103210.0,103200.0,0.3963293]
[1747232701851,1.0653505,103210.0,103200.0,0.3963293]
[1747232702046,0.8716,103210.0,103200.0,0.58213258]
[1747232702252,1.1753505,103210.0,103200.0,0.29945453]
[1747232702760,1.47115378,103210.0,103200.0,0.20256]
[1747232702951,1.3781505,103210.0,103200.0,0.20256]
[1747232703147,1.3781505,103210.0,103200.0,0.3963293]
[1747232703459,1.0753505,103210.0,103200.0,0.3963293]
[1747232703961,1.0753505,103210.0,103200.0,0.20256]
[1747232704161,1.1189505,103210.0,103200.0,0.3963293]
[1747232704351,1.1189505,103210.0,103200.0,0.20256]
[1747232704550,1.1648505,103210.0,103200.0,0.20256]
[1747232705461,1.1648505,103210.0,103200.0,0.3963293]
[1747232705663,1.0753505,103210.0,103200.0,0.58213258]
[1747232705857,0.9153505,103210.0,103200.0,0.3963293]
[1747232706069,0.7216,103210.0,103200.0,0.3963293]
[1747232706961,0.7216,103210.0,103200.0,0.49322383]
[1747232707259,0.3608,103220.0,103210.0,0.3390542]
[1747232707561,0.3608,103220.0,103210.0,2.15915748]
[1747232707762,0.3608,103220.0,103210.0,1.9733542]
[1747232707951,0.3608,103220.0,103210.0,1.88376914]
[1747232708258,0.5024,103220.0,103210.0,0.286884]
[1747232708457,0.5024,103220.0,103210.0,0.376484]
[1747232708761,0.5545318,103220.0,103210.0,0.376484]
[1747232708959,0.3608,103220.0,103210.0,0.377484]
[1747232709147,0.3608,103220.0,103210.0,0.47436914]
[1747232709353,0.3608,103220.0,103210.0,0.66017242]
[1747232709758,0.3608,103220.0,103210.0,0.66117242]
[1747232710260,0.3608,103220.0,103210.0,0.47536914]
[1747232710651,0.3608,103220.0,103210.0,0.66117242]
[1747232710851,0.554513,103230.0,103220.0,0.1937318]
[1747232711066,0.3608,103230.0,103220.0,0.46743508]
[1747232711361,0.554513,103230.0,103220.0,0.46743508]
[1747232711558,0.554513,103230.0,103220.0,0.56432022]
[1747232711860,0.3628,103240.0,103230.0,0.193713]
[1747232712060,0.3628,103240.0,103230.0,0.51061628]
[1747232712268,0.5564942,103240.0,103230.0,0.51061628]
[1747232712565,0.5564942,103240.0,103230.0,0.60749203]
[1747232713165,0.5564942,103240.0,103230.0,0.42168875]
[1747232713561,0.74229748,103240.0,103230.0,0.0443]
[1747232713755,1.38725748,103240.0,103230.0,0.0443]
[1747232713953,1.38825748,103240.0,103230.0,0.0443]
[1747232714154,0.193713,103230.0,103220.0,0.2393297]
[1747232714360,0.645213,103230.0,103220.0,0.2836297]
[1747232714957,0.755213,103230.0,103220.0,0.2836297]
[1747232715957,0.1937505,103210.0,103200.0,0.4357677]
[1747232716262,0.5545505,103210.0,103200.0,0.62157098]
[1747232716464,0.5545505,103210.0,103200.0,0.71844673]
[1747232717364,0.5545505,103210.0,103200.0,0.53264345]
[1747232717560,0.5924075,103220.0,103200.0,0.52668103]
[1747232717864,0.6039505,103230.0,103220.0,0.1937318]
[1747232718063,0.6912505,103230.0,103220.0,0.1937318]
[1747232718367,0.6912505,103230.0,103220.0,0.2830318]